[Event "SVK Extraliga 2019-20"]
[Site "Slovakia"]
[Date "2019.11.23"]
[Round "3"]
[White "Druska, Juraj"]
[Black "Mrvova, Alena"]
[Result "1-0"]
[ECO "B38"]
[WhiteElo "2495"]
[BlackElo "2165"]
[Annotator "ChessBase"]
[PlyCount "143"]
[EventDate "2019.10.19"]
[EventType "team-tourn"]
[EventCountry "SVK"]
[SourceTitle "playchess.com"]
[Source "ChessBase"]
[SourceQuality "1"]
[WhiteTeam "Zilina"]
[BlackTeam "Snina"]
[TimeControl "40/5400+30:1800+30"]

1. e4 {[%emt 0:00:00]} c5 {[%emt 0:00:00]} 2. Nf3 {[%emt 0:00:00]} Nc6 {[%emt 0:00:52]} 3. d4 {[%emt 0:00:11]} cxd4 {[%emt 0:00:42]} 4. Nxd4 {[%emt 0:00:08]} g6 {[%emt 0:02:34]} 5. c4 {[%emt 0:01:17]} Bg7 {[%emt 0:00:32]} 6. Be3 {[%emt 0:00:08]} Nf6 {[%emt 0:01:46]} 7. Nc3 {[%emt 0:00:15]} Qa5 {[%emt 0:00:58]} 8. Nb3 {[%emt 0:05:55]} Qc7 {[%emt 0:03:59]} 9. Rc1 {[%emt 0:01:10]} O-O {[%emt 0:02:46]} 10. Be2 {[%emt 0:01:46]} b6 {[%emt 0:07:23]} 11. O-O {[%emt 0:01:43]} Qb8 {[%emt 0:12:53]} 12. Qd2 {[%emt 0:04:32]} Ne5 {[%emt 0:04:05]} 13. f3 {[%emt 0:20:51]} d6 {[%emt 0:07:18]} 14. Nd4 {[%emt 0:02:33]} Re8 {[%emt 0:01:29]} 15. Rfd1 {[%emt 0:14:44]} Bb7 {[%emt 0:07:00]} 16. Bf1 {[%emt 0:03:16]} Nfd7 {[%emt 0:03:58]} 17. Nd5 {[%emt 0:11:02]} e6 {[%emt 0:03:05]} 18. Nc3 {[%emt 0:00:49]} a6 {[%emt 0:02:13]} 19. Nc2 {[%emt 0:10:17]} Bf8 {[%emt 0:02:09]} 20. Bh6 {[%emt 0:01:09]} Be7 {[%emt 0:01:25]} 21. Bg5 {[%emt 0:00:28]} Bf8 {[%emt 0:00:45]} 22. f4 {[%emt 0:03:01]} Ng4 {[%emt 0:03:21]} 23. Qe2 {[%emt 0:04:38]} h5 {[%emt 0:02:40]} 24. h3 {[%emt 0:06:03]} Ngf6 {[%emt 0:00:49]} 25. Nd4 {[%emt 0:01:32]} Qc7 {[%emt 0:03:10]} 26. Nf3 {[%emt 0:01:02]} Nh7 {[%emt 0:00:50]} 27. Bh4 {[%emt 0:00:24]} Rac8 {[%emt 0:01:41]} 28. Kh1 {[%emt 0:01:18]} Nc5 {[%emt 0:02:38]} 29. b4 {[%emt 0:01:45]} Nd7 {[%emt 0:00:07]} 30. a3 {[%emt 0:00:28]} Qb8 {[%emt 0:01:39]} 31. e5 {[%emt 0:00:59]} Qc7 {[%emt 0:03:52]} 32. Ne4 {[%emt 0:00:01]} dxe5 {[%emt 0:01:40]} 33. fxe5 {[%emt 0:00:01]} Bxe4 {[%emt 0:02:03]} 34. Qxe4 {[%emt 0:00:01]} Bh6 {[%emt 0:01:47]} 35. Rc3 {[%emt 0:00:11]} Bg7 {[%emt 0:00:23]} 36. Re3 {[%emt 0:00:54]} Nb8 {[%emt 0:00:34]} 37. Be2 {[%emt 0:03:03]} Nc6 {[%emt 0:00:28]} 38. Bf1 {[%emt 0:00:01]} Ne7 {[%emt 0:00:12]} 39. Red3 {[%emt 0:00:07]} Nf8 {[%emt 0:03:13]} 40. R3d2 {[%emt 0:01:32]} Nf5 {[%emt 0:01:24]} 41. Rd6 {[%emt 0:12:16]} Bh6 {[%emt 0:08:42]} 42. Bf2 {[%emt 0:00:06]} Be3 {[%emt 0:00:44]} 43. Kg1 {[%emt 0:00:58]} Bxf2+ {[%emt 0:00:39]} 44. Kxf2 {[%emt 0:00:02]} Nxd6 {[%emt 0:03:36]} 45. exd6 {[%emt 0:00:07]} Qd8 {[%emt 0:00:03]} 46. c5 {[%emt 0:07:45]} bxc5 {[%emt 0:02:40]} 47. Bxa6 {[%emt 0:00:07]} cxb4 {[%emt 0:10:40]} 48. Bxc8 {[%emt 0:00:08]} Qxc8 {[%emt 0:00:21]} 49. axb4 {[%emt 0:01:50]} Rd8 {[%emt 0:00:27]} 50. Ne5 {[%emt 0:01:34]} Kg7 {[%emt 0:04:15]} 51. Kg1 {[%emt 0:08:54]} Qa6 {[%emt 0:07:27]} 52. Nc6 {[%emt 0:01:49]} Qb6+ {[%emt 0:02:02]} 53. Kh1 {[%emt 0:00:15]} Rc8 {[%emt 0:02:03]} 54. Ne5 {[%emt 0:01:21]} Rd8 {[%emt 0:00:53]} 55. Nc6 {[%emt 0:00:10]} Rc8 {[%emt 0:00:03]} 56. Ne5 {[%emt 0:00:41]} Rd8 {[%emt 0:00:05]} 57. Nc6 {[%emt 0:00:35]} Rc8 {[%emt 0:00:07]} 58. b5 {[%emt 0:00:17]} Nd7 {[%emt 0:01:54]} 59. Qa4 {[%emt 0:00:37]} e5 {[%emt 0:00:41]} 60. Qc4 {[%emt 0:00:25]} Rf8 {[%emt 0:00:59]} 61. Qd5 {[%emt 0:00:43]} Re8 {[%emt 0:00:23]} 62. Rf1 {[%emt 0:00:15]} Re6 {[%emt 0:00:19]} 63. Ra1 {[%emt 0:00:40]} Qf2 {[%emt 0:00:28]} 64. Rd1 {[%emt 0:00:22]} Qf6 {[%emt 0:00:29]} 65. Nb4 {[%emt 0:00:39]} Qd8 {[%emt 0:00:52]} 66. Qc6 {[%emt 0:00:24]} Nb8 {[%emt 0:00:06]} 67. Qc7 {[%emt 0:00:10]} Qf8 {[%emt 0:00:15]} 68. Nc6 {[%emt 0:00:13]} Re8 {[%emt 0:00:39]} 69. d7 {[%emt 0:00:10]} Nxd7 {[%emt 0:00:10]} 70. Qxd7 {[%emt 0:00:07]} Re6 {[%emt 0:00:12]} 71. b6 {[%emt 0:00:26]} Qc5 {[%emt 0:00:03]} 72. b7 {[%emt 0:00:14]} 1-0

[Event "SVK Extraliga 2019-20"]
[Site "Slovakia"]
[Date "2019.11.23"]
[Round "3"]
[White "Jurcik, Marian"]
[Black "Fiacan, Robert"]
[Result "1-0"]
[ECO "B01"]
[WhiteElo "2482"]
[BlackElo "2254"]
[Annotator "ChessBase"]
[PlyCount "165"]
[EventDate "2019.10.19"]
[EventType "team-tourn"]
[EventCountry "SVK"]
[SourceTitle "playchess.com"]
[Source "ChessBase"]
[SourceQuality "1"]
[WhiteTeam "Zilina"]
[BlackTeam "Snina"]
[TimeControl "40/5400+30:1800+30"]

1. e4 {[%emt 0:00:00]} d5 {[%emt 0:00:00]} 2. exd5 {[%emt 0:00:35]} Qxd5 {[%emt 0:00:03]} 3. Nc3 {[%emt 0:01:13]} Qd6 {[%emt 0:00:08]} 4. d4 {[%emt 0:02:11]} Nf6 {[%emt 0:00:20]} 5. Bc4 {[%emt 0:01:42]} a6 {[%emt 0:07:35]} 6. Nge2 {[%emt 0:03:24]} b5 {[%emt 0:10:17]} 7. Bf4 {[%emt 0:04:49]} Qd7 {[%emt 0:03:05]} 8. Bb3 {[%emt 0:01:33]} Bb7 {[%emt 0:02:31]} 9. d5 {[%emt 0:06:25]} c5 {[%emt 0:11:14]} 10. dxc6 {[%emt 0:02:16]} Qxd1+ {[%emt 0:08:40]} 11. Rxd1 {[%emt 0:03:57]} Nxc6 {[%emt 0:02:06]} 12. Nd5 {[%emt 0:04:52]} Nxd5 {[%emt 0:02:37]} 13. Bxd5 {[%emt 0:00:19]} e6 {[%emt 0:07:25]} 14. Bf3 {[%emt 0:00:41]} Rd8 {[%emt 0:19:20]} 15. O-O {[%emt 0:02:57]} Be7 {[%emt 0:03:57]} 16. Bc7 {[%emt 0:04:13]} Rd7 {[%emt 0:02:01]} 17. Bb6 {[%emt 0:05:53]} Ne5 {[%emt 0:02:21]} 18. Bxb7 {[%emt 0:00:11]} Rxb7 {[%emt 0:00:09]} 19. Bd4 {[%emt 0:00:16]} Bf6 {[%emt 0:01:11]} 20. Ng3 {[%emt 0:03:05]} Rd7 {[%emt 0:10:48]} 21. Bc5 {[%emt 0:13:24]} Be7 {[%emt 0:00:39]} 22. Bd4 {[%emt 0:20:44]} Bf6 {[%emt 0:00:12]} 23. c3 {[%emt 0:00:05]} Nc4 {[%emt 0:02:02]} 24. Bxf6 {[%emt 0:00:34]} gxf6 {[%emt 0:00:24]} 25. b3 {[%emt 0:00:39]} Ne5 {[%emt 0:01:26]} 26. Ne4 {[%emt 0:02:18]} Ke7 {[%emt 0:00:20]} 27. Nc5 {[%emt 0:03:48]} Rc7 {[%emt 0:00:29]} 28. Nxa6 {[%emt 0:00:46]} Rxc3 {[%emt 0:00:12]} 29. Nb4 {[%emt 0:04:21]} Rhc8 {[%emt 0:00:53]} 30. Rfe1 {[%emt 0:01:01]} Rg8 {[%emt 0:01:12]} 31. Re4 {[%emt 0:03:39]} Rd8 {[%emt 0:00:29]} 32. Rde1 {[%emt 0:01:55]} Rd2 {[%emt 0:00:29]} 33. h3 {[%emt 0:00:39]} Nc6 {[%emt 0:00:18]} 34. R4e2 {[%emt 0:01:58]} Rxe2 {[%emt 0:00:34]} 35. Nxc6+ {[%emt 0:00:01]} Rxc6 {[%emt 0:00:16]} 36. Rxe2 {[%emt 0:00:04]} Rc1+ {[%emt 0:00:26]} 37. Kh2 {[%emt 0:00:01]} f5 {[%emt 0:00:48]} 38. Re5 {[%emt 0:01:28]} Ra1 {[%emt 0:01:04]} 39. Rxb5 {[%emt 0:00:16]} Rxa2 {[%emt 0:00:07]} 40. f4 {[%emt 0:01:11]} Rb2 {[%emt 0:00:55]} 41. Rb8 {[%emt 0:03:51]} Kf6 {[%emt 0:04:47]} 42. b4 {[%emt 0:05:04]} Rb3 {[%emt 0:12:18]} 43. b5 {[%emt 0:03:00]} Kg7 {[%emt 0:03:10]} 44. b6 {[%emt 0:02:10]} Rb4 {[%emt 0:02:57]} 45. Kg3 {[%emt 0:01:07]} Rb3+ {[%emt 0:00:42]} 46. Kf2 {[%emt 0:06:59]} Rb2+ {[%emt 0:00:17]} 47. Kf3 {[%emt 0:04:57]} Rb3+ {[%emt 0:02:04]} 48. Ke2 {[%emt 0:00:03]} Rg3 {[%emt 0:00:44]} 49. Kf2 {[%emt 0:02:26]} Rb3 {[%emt 0:00:08]} 50. Ke2 {[%emt 0:02:09]} Rg3 {[%emt 0:01:02]} 51. Kd2 {[%emt 0:03:25]} Rxg2+ {[%emt 0:01:04]} 52. Kc3 {[%emt 0:00:01]} Rg1 {[%emt 0:00:59]} 53. Kc2 {[%emt 0:00:10]} Rg2+ {[%emt 0:00:15]} 54. Kc3 {[%emt 0:00:35]} Rg1 {[%emt 0:00:16]} 55. Kd4 {[%emt 0:00:58]} Kf6 {[%emt 0:02:01]} 56. Re8 {[%emt 0:01:03]} Rb1 {[%emt 0:00:31]} 57. Kc5 {[%emt 0:00:02]} Rc1+ {[%emt 0:01:49]} 58. Kd6 {[%emt 0:00:21]} Rd1+ {[%emt 0:02:13]} 59. Kc7 {[%emt 0:00:01]} Rc1+ {[%emt 0:00:07]} 60. Kd6 {[%emt 0:01:31]} Rd1+ {[%emt 0:00:16]} 61. Kc7 {[%emt 0:00:33]} Rc1+ {[%emt 0:00:18]} 62. Kd7 {[%emt 0:00:33]} Rd1+ {[%emt 0:00:44]} 63. Kc7 {[%emt 0:00:32]} Rc1+ {[%emt 0:00:07]} 64. Kd7 {[%emt 0:00:31]} Rd1+ {[%emt 0:00:07]} 65. Kc8 {[%emt 0:00:26]} Rc1+ {[%emt 0:00:14]} 66. Kb8 {[%emt 0:00:30]} Rf1 {[%emt 0:03:59]} 67. b7 {[%emt 0:00:06]} Rxf4 {[%emt 0:00:23]} 68. Kc7 {[%emt 0:00:01]} Rb4 {[%emt 0:00:29]} 69. b8=Q {[%emt 0:00:09]} Rxb8 {[%emt 0:00:05]} 70. Rxb8 {[%emt 0:00:05]} Ke5 {[%emt 0:00:36]} 71. Rf8 {[%emt 0:01:19]} f6 {[%emt 0:01:11]} 72. Kd7 {[%emt 0:00:02]} f4 {[%emt 0:00:13]} 73. Re8 {[%emt 0:00:20]} f3 {[%emt 0:00:34]} 74. Rxe6+ {[%emt 0:00:06]} Kf4 {[%emt 0:00:17]} 75. Rxf6+ {[%emt 0:00:33]} Kg3 {[%emt 0:00:07]} 76. Ke6 {[%emt 0:00:57]} f2 {[%emt 0:00:24]} 77. h4 {[%emt 0:00:32]} h5 {[%emt 0:00:49]} 78. Ke5 {[%emt 0:01:22]} Kxh4 {[%emt 0:00:26]} 79. Ke4 {[%emt 0:00:52]} Kg3 {[%emt 0:00:24]} 80. Ke3 {[%emt 0:00:09]} h4 {[%emt 0:00:20]} 81. Rg6+ {[%emt 0:00:17]} Kh2 {[%emt 0:00:26]} 82. Kxf2 {[%emt 0:00:18]} h3 {[%emt 0:00:10]} 83. Rh6 {[%emt 0:00:04]} 1-0

[Event "SVK Extraliga 2019-20"]
[Site "Slovakia"]
[Date "2019.11.23"]
[Round "3"]
[White "Krak, Tomas"]
[Black "Bernasek, Jan"]
[Result "0-1"]
[ECO "A41"]
[WhiteElo "2317"]
[BlackElo "2478"]
[Annotator "ChessBase"]
[PlyCount "110"]
[EventDate "2019.10.19"]
[EventType "team-tourn"]
[EventCountry "SVK"]
[SourceTitle "playchess.com"]
[Source "ChessBase"]
[SourceQuality "1"]
[WhiteTeam "Snina"]
[BlackTeam "Zilina"]
[TimeControl "40/5400+30:1800+30"]

1. e4 {[%emt 0:00:40]} g6 {[%emt 0:00:00]} 2. d4 {[%emt 0:02:03]} Bg7 {[%emt 0:00:00]} 3. Nf3 {[%emt 0:02:25]} d6 {[%emt 0:00:37]} 4. c4 {[%emt 0:00:54]} e5 {[%emt 0:04:26]} 5. d5 {[%emt 0:00:54]} f5 {[%emt 0:02:52]} 6. Nc3 {[%emt 0:09:48]} Nf6 {[%emt 0:01:35]} 7. exf5 {[%emt 0:05:15]} gxf5 {[%emt 0:02:37]} 8. Be2 {[%emt 0:01:57]} O-O {[%emt 0:01:29]} 9. h3 {[%emt 0:08:09]} Na6 {[%emt 0:05:48]} 10. Ng5 {[%emt 0:14:33]} Qe8 {[%emt 0:06:18]} 11. f4 {[%emt 0:09:50]} e4 {[%emt 0:02:51]} 12. g4 {[%emt 0:09:36]} Nc5 {[%emt 0:04:53]} 13. Be3 {[%emt 0:02:33]} h6 {[%emt 0:04:24]} 14. Bxc5 {[%emt 0:02:09]} dxc5 {[%emt 0:00:56]} 15. gxf5 {[%emt 0:03:37]} Bxf5 {[%emt 0:04:46]} 16. Ne6 {[%emt 0:04:52]} Bxe6 {[%emt 0:01:24]} 17. dxe6 {[%emt 0:00:08]} Qxe6 {[%emt 0:02:26]} 18. Qb3 {[%emt 0:02:23]} Rad8 {[%emt 0:08:54]} 19. Qxb7 {[%emt 0:02:14]} Qd6 {[%emt 0:04:32]} 20. Nd5 {[%emt 0:02:12]} Nxd5 {[%emt 0:06:42]} 21. Qxd5+ {[%emt 0:00:16]} Qxd5 {[%emt 0:00:08]} 22. cxd5 {[%emt 0:00:03]} Bxb2 {[%emt 0:02:00]} 23. Rb1 {[%emt 0:00:42]} Bc3+ {[%emt 0:05:30]} 24. Kf2 {[%emt 0:00:08]} Rxf4+ {[%emt 0:02:52]} 25. Ke3 {[%emt 0:00:26]} Rdf8 {[%emt 0:07:05]} 26. Rhg1+ {[%emt 0:00:49]} Kh7 {[%emt 0:01:55]} 27. Rg4 {[%emt 0:01:13]} Bd4+ {[%emt 0:04:31]} 28. Kd2 {[%emt 0:00:08]} e3+ {[%emt 0:01:45]} 29. Kd3 {[%emt 0:01:12]} c4+ {[%emt 0:01:31]} 30. Kxc4 {[%emt 0:01:22]} Bb6+ {[%emt 0:00:08]} 31. Kb5 {[%emt 0:02:55]} Rxg4 {[%emt 0:01:01]} 32. hxg4 {[%emt 0:00:29]} Rf2 {[%emt 0:01:46]} 33. Rb2 {[%emt 0:00:14]} Kg7 {[%emt 0:00:43]} 34. a4 {[%emt 0:00:16]} Kf6 {[%emt 0:00:44]} 35. a5 {[%emt 0:00:19]} Bd4 {[%emt 0:00:04]} 36. Rc2 {[%emt 0:00:16]} Ke5 {[%emt 0:00:08]} 37. Kc4 {[%emt 0:02:37]} Rf8 {[%emt 0:03:36]} 38. Kd3 {[%emt 0:00:36]} Rb8 {[%emt 0:00:43]} 39. Bf3 {[%emt 0:03:13]} Rb3+ {[%emt 0:02:30]} 40. Kc4 {[%emt 0:01:28]} Rb1 {[%emt 0:01:11]} 41. Kd3 {[%emt 0:35:01]} Rf1 {[%emt 0:09:10]} 42. Be2 {[%emt 0:00:00]} Ra1 {[%emt 0:00:24]} 43. Rxc7 {[%emt 0:00:00]} Ra3+ {[%emt 0:01:16]} 44. Kc2 {[%emt 0:00:00]} Ra2+ {[%emt 0:01:14]} 45. Kd1 {[%emt 0:00:00]} Rd2+ {[%emt 0:00:06]} 46. Ke1 {[%emt 0:00:00]} Kxd5 {[%emt 0:00:13]} 47. Kf1 {[%emt 0:00:00]} Ke4 {[%emt 0:02:24]} 48. Rh7 {[%emt 0:00:00]} Ra2 {[%emt 0:02:11]} 49. Re7+ {[%emt 0:00:00]} Kf4 {[%emt 0:01:03]} 50. Rd7 {[%emt 0:00:00]} Bc5 {[%emt 0:01:44]} 51. a6 {[%emt 0:00:00]} Kg3 {[%emt 0:00:56]} 52. Rd5 {[%emt 0:00:00]} Ra1+ {[%emt 0:02:20]} 53. Rd1 {[%emt 0:00:00]} Ra4 {[%emt 0:00:11]} 54. Kg1 {[%emt 0:00:00]} Rxg4 {[%emt 0:05:53]} 55. Bxg4 {[%emt 0:04:01]} e2+ {[%emt 0:00:28]} 0-1

[Event "SVK Extraliga 2019-20"]
[Site "Slovakia"]
[Date "2019.11.23"]
[Round "3"]
[White "Straka, Jozef"]
[Black "Harvan, Richard"]
[Result "1/2-1/2"]
[ECO "A45"]
[WhiteElo "2291"]
[BlackElo "2098"]
[Annotator "NA"]
[PlyCount "36"]
[EventDate "2019.10.19"]
[EventType "team-tourn"]
[EventCountry "SVK"]
[SourceTitle "playchess.com"]
[Source "ChessBase"]
[SourceQuality "1"]
[WhiteTeam "Zilina"]
[BlackTeam "Snina"]
[TimeControl "40/5400+30:1800+30"]

1. d4 {[%emt 0:00:00]} Nf6 {[%emt 0:00:00]} 2. Bg5 {[%emt 0:00:00]} e6 {[%emt 0:00:54]} 3. e4 {[%emt 0:00:00]} h6 {[%emt 0:04:26]} 4. Bxf6 {[%emt 0:02:21]} Qxf6 {[%emt 0:00:06]} 5. Nc3 {[%emt 0:00:09]} Bb4 {[%emt 0:03:35]} 6. Nge2 {[%emt 0:02:09]} O-O {[%emt 0:00:31]} 7. Qd2 {[%emt 0:00:40]} d5 {[%emt 0:05:31]} 8. e5 {[%emt 0:02:21]} Qe7 {[%emt 0:00:50]} 9. a3 {[%emt 0:04:35]} Bxc3 {[%emt 0:04:34]} 10. Qxc3 {[%emt 0:00:29]} b6 {[%emt 0:02:05]} 11. Ng3 {[%emt 0:08:26]} c5 {[%emt 0:02:44]} 12. dxc5 {[%emt 0:01:36]} Qxc5 {[%emt 0:07:48]} 13. Qxc5 {[%emt 0:00:25]} bxc5 {[%emt 0:00:02]} 14. O-O-O {[%emt 0:02:10]} Ba6 {[%emt 0:00:08]} 15. Bxa6 {[%emt 0:03:33]} Nxa6 {[%emt 0:00:02]} 16. c4 {[%emt 0:05:04]} Nc7 {[%emt 0:15:55]} 17. cxd5 {[%emt 0:05:08]} exd5 {[%emt 0:03:17]} 18. f4 {[%emt 0:01:13]} f6 {[%emt 0:06:49]} 1/2-1/2

[Event "SVK Extraliga 2019-20"]
[Site "Slovakia"]
[Date "2019.11.23"]
[Round "3"]
[White "Sepesi, Samuel"]
[Black "Petrik, Tomas"]
[Result "0-1"]
[ECO "C07"]
[WhiteElo "2174"]
[BlackElo "2462"]
[Annotator "ChessBase"]
[PlyCount "128"]
[EventDate "2019.10.19"]
[EventType "team-tourn"]
[EventCountry "SVK"]
[SourceTitle "playchess.com"]
[Source "ChessBase"]
[SourceQuality "1"]
[WhiteTeam "Snina"]
[BlackTeam "Zilina"]
[TimeControl "40/5400+30:1800+30"]

1. e4 {[%emt 0:00:00]} e6 {[%emt 0:00:14]} 2. d4 {[%emt 0:00:00]} d5 {[%emt 0:00:05]} 3. Nd2 {[%emt 0:00:00]} c5 {[%emt 0:01:16]} 4. exd5 {[%emt 0:00:00]} Qxd5 {[%emt 0:00:06]} 5. dxc5 {[%emt 0:00:06]} Nf6 {[%emt 0:00:45]} 6. Ngf3 {[%emt 0:00:06]} Qxc5 {[%emt 0:00:32]} 7. Bd3 {[%emt 0:00:10]} Be7 {[%emt 0:00:12]} 8. O-O {[%emt 0:00:11]} O-O {[%emt 0:00:28]} 9. Qe2 {[%emt 0:00:06]} Nbd7 {[%emt 0:00:19]} 10. c4 {[%emt 0:00:11]} b6 {[%emt 0:02:53]} 11. Ne4 {[%emt 0:00:13]} Qc7 {[%emt 0:04:07]} 12. b3 {[%emt 0:00:09]} Bb7 {[%emt 0:00:54]} 13. Bb2 {[%emt 0:00:12]} Qf4 {[%emt 0:11:32]} 14. Nxf6+ {[%emt 0:04:38]} Bxf6 {[%emt 0:07:18]} 15. Bxf6 {[%emt 0:07:06]} Nxf6 {[%emt 0:04:35]} 16. Qe5 {[%emt 0:03:22]} Qxe5 {[%emt 0:22:22]} 17. Nxe5 {[%emt 0:00:04]} Rfd8 {[%emt 0:00:20]} 18. Rfd1 {[%emt 0:06:34]} Ne4 {[%emt 0:06:36]} 19. Rac1 {[%emt 0:03:56]} f6 {[%emt 0:03:48]} 20. Nf3 {[%emt 0:14:44]} e5 {[%emt 0:10:16]} 21. b4 {[%emt 0:01:26]} Kf8 {[%emt 0:05:19]} 22. Ne1 {[%emt 0:09:24]} g6 {[%emt 0:04:15]} 23. c5 {[%emt 0:07:49]} bxc5 {[%emt 0:01:29]} 24. f3 {[%emt 0:00:12]} Ng5 {[%emt 0:02:40]} 25. bxc5 {[%emt 0:00:15]} Rac8 {[%emt 0:02:49]} 26. Bb5 {[%emt 0:08:43]} Rxd1 {[%emt 0:02:01]} 27. Rxd1 {[%emt 0:00:04]} Ne6 {[%emt 0:01:01]} 28. Nd3 {[%emt 0:12:35]} Nd4 {[%emt 0:02:31]} 29. Bc4 {[%emt 0:00:09]} Ke7 {[%emt 0:00:32]} 30. Kf2 {[%emt 0:04:10]} Ne6 {[%emt 0:00:29]} 31. Rb1 {[%emt 0:03:00]} Ba8 {[%emt 0:01:13]} 32. Rb5 {[%emt 0:03:59]} Nd4 {[%emt 0:00:27]} 33. Ra5 {[%emt 0:00:48]} Nc6 {[%emt 0:00:10]} 34. Ra4 {[%emt 0:02:13]} Rc7 {[%emt 0:02:12]} 35. Bd5 {[%emt 0:03:11]} Rd7 {[%emt 0:01:03]} 36. Nb4 {[%emt 0:01:39]} Nxb4 {[%emt 0:00:26]} 37. Bxa8 {[%emt 0:00:06]} Nd3+ {[%emt 0:00:10]} 38. Ke3 {[%emt 0:06:22]} Nxc5 {[%emt 0:00:06]} 39. Ra5 {[%emt 0:00:58]} Ne6 {[%emt 0:01:18]} 40. Bc6 {[%emt 0:00:34]} Rc7 {[%emt 0:00:31]} 41. Ba4 {[%emt 0:02:12]} Nc5 {[%emt 0:14:26]} 42. Bb5 {[%emt 0:02:36]} Kd6 {[%emt 0:03:08]} 43. Bc4 {[%emt 0:12:34]} Rb7 {[%emt 0:02:06]} 44. f4 {[%emt 0:03:15]} exf4+ {[%emt 0:03:16]} 45. Kd4 {[%emt 0:00:53]} Rc7 {[%emt 0:01:10]} 46. h4 {[%emt 0:04:25]} f5 {[%emt 0:03:27]} 47. h5 {[%emt 0:01:40]} g5 {[%emt 0:03:16]} 48. h6 {[%emt 0:00:55]} g4 {[%emt 0:02:26]} 49. Bd5 {[%emt 0:00:06]} a6 {[%emt 0:00:19]} 50. Ba8 {[%emt 0:04:06]} Ne6+ {[%emt 0:01:03]} 51. Kd3 {[%emt 0:00:07]} Nc5+ {[%emt 0:00:38]} 52. Kd4 {[%emt 0:00:02]} Ne6+ {[%emt 0:00:53]} 53. Kd3 {[%emt 0:00:06]} Rf7 {[%emt 0:00:31]} 54. Rxa6+ {[%emt 0:03:12]} Ke5 {[%emt 0:00:02]} 55. Ra5+ {[%emt 0:00:46]} Kf6 {[%emt 0:00:01]} 56. Bd5 {[%emt 0:00:07]} Rd7 {[%emt 0:00:41]} 57. Kc4 {[%emt 0:00:22]} Rc7+ {[%emt 0:01:02]} 58. Kd3 {[%emt 0:00:08]} Rd7 {[%emt 0:00:30]} 59. Kc4 {[%emt 0:00:11]} Rd6 {[%emt 0:00:36]} 60. Ra7 {[%emt 0:01:20]} f3 {[%emt 0:00:34]} 61. gxf3 {[%emt 0:00:31]} Nf4 {[%emt 0:00:24]} 62. Ba8 {[%emt 0:01:27]} g3 {[%emt 0:00:12]} 63. Rxh7 {[%emt 0:00:28]} g2 {[%emt 0:00:42]} 64. Rg7 {[%emt 0:00:05]} Ng6 {[%emt 0:00:33] Kd4 Ke5+} 0-1

[Event "SVK Extraliga 2019-20"]
[Site "Slovakia"]
[Date "2019.11.23"]
[Round "3"]
[White "Pcola st., Jaroslav"]
[Black "Jurcik, Martin"]
[Result "1/2-1/2"]
[ECO "B06"]
[WhiteElo "2057"]
[BlackElo "2358"]
[Annotator "NA"]
[PlyCount "86"]
[EventDate "2019.10.19"]
[EventType "team-tourn"]
[EventCountry "SVK"]
[SourceTitle "playchess.com"]
[Source "ChessBase"]
[SourceQuality "1"]
[WhiteTeam "Snina"]
[BlackTeam "Zilina"]
[TimeControl "40/5400+30:1800+30"]

1. e4 {[%emt 0:00:00]} g6 {[%emt 0:00:00]} 2. Nf3 {[%emt 0:00:34]} Bg7 {[%emt 0:00:21]} 3. d4 {[%emt 0:01:24]} d6 {[%emt 0:00:27]} 4. Nc3 {[%emt 0:02:17]} a6 {[%emt 0:00:28]} 5. a4 {[%emt 0:10:29]} b6 {[%emt 0:00:42]} 6. Bd3 {[%emt 0:02:08]} Bb7 {[%emt 0:06:36]} 7. O-O {[%emt 0:07:51]} e6 {[%emt 0:00:34]} 8. Ne2 {[%emt 0:06:24]} Nd7 {[%emt 0:02:08]} 9. c3 {[%emt 0:02:05]} Ne7 {[%emt 0:13:15]} 10. Re1 {[%emt 0:01:22]} O-O {[%emt 0:23:15]} 11. Bd2 {[%emt 0:07:37]} e5 {[%emt 0:09:15]} 12. Ng3 {[%emt 0:04:45]} exd4 {[%emt 0:14:07]} 13. cxd4 {[%emt 0:01:39]} d5 {[%emt 0:00:41]} 14. Bc3 {[%emt 0:20:28]} dxe4 {[%emt 0:01:08]} 15. Bxe4 {[%emt 0:00:24]} Nd5 {[%emt 0:02:23]} 16. Ne5 {[%emt 0:11:36]} Nxc3 {[%emt 0:08:45]} 17. bxc3 {[%emt 0:00:07]} Bxe4 {[%emt 0:00:06]} 18. Nxd7 {[%emt 0:01:53]} Qxd7 {[%emt 0:00:05]} 19. Nxe4 {[%emt 0:02:10]} a5 {[%emt 0:00:01]} 20. Qb3 {[%emt 0:02:49]} Rfe8 {[%emt 0:02:14]} 21. Nd2 {[%emt 0:02:40]} Bf8 {[%emt 0:04:45]} 22. Nf3 {[%emt 0:00:53]} Bd6 {[%emt 0:00:05]} 23. Qc4 {[%emt 0:01:45]} Kg7 {[%emt 0:03:15]} 24. Rad1 {[%emt 0:01:15]} Rxe1+ {[%emt 0:01:10]} 25. Rxe1 {[%emt 0:00:01]} Re8 {[%emt 0:00:09]} 26. Rxe8 {[%emt 0:01:14]} Qxe8 {[%emt 0:00:01]} 27. g3 {[%emt 0:02:32]} h6 {[%emt 0:00:18]} 28. Nd2 {[%emt 0:03:23]} Qe1+ {[%emt 0:06:25]} 29. Nf1 {[%emt 0:00:03]} h5 {[%emt 0:00:04]} 30. h4 {[%emt 0:01:26]} Qe4 {[%emt 0:00:03]} 31. Nd2 {[%emt 0:00:48]} Qe1+ {[%emt 0:01:07]} 32. Nf1 {[%emt 0:00:02]} Qe8 {[%emt 0:00:08]} 33. Kg2 {[%emt 0:00:43]} Qe4+ {[%emt 0:01:10]} 34. Kg1 {[%emt 0:00:51]} Kf8 {[%emt 0:00:53]} 35. Nd2 {[%emt 0:00:36]} Qe1+ {[%emt 0:00:42]} 36. Nf1 {[%emt 0:00:04]} Qe8 {[%emt 0:00:35]} 37. Kg2 {[%emt 0:00:21]} Qe4+ {[%emt 0:00:22]} 38. Kg1 {[%emt 0:00:09]} Kg8 {[%emt 0:00:45]} 39. Nd2 {[%emt 0:00:17]} Qe1+ {[%emt 0:00:29]} 40. Nf1 {[%emt 0:00:04]} Kf8 {[%emt 0:00:23]} 41. Kg2 {[%emt 0:30:32]} Qe4+ {[%emt 0:00:55]} 42. Kg1 {[%emt 0:00:00]} Kg7 {[%emt 0:23:10]} 43. Nd2 {[%emt 0:00:00]} Qe1+ {[%emt 0:01:35]} 1/2-1/2

[Event "SVK Extraliga 2019-20"]
[Site "Slovakia"]
[Date "2019.11.23"]
[Round "3.1"]
[White "Ftacnik, Lubomir"]
[Black "Matuszewski, Michal"]
[Result "1-0"]
[ECO "D15"]
[WhiteElo "2521"]
[BlackElo "2524"]
[Annotator "ChessBase"]
[PlyCount "59"]
[EventDate "2019.10.19"]
[EventType "team-tourn"]
[EventCountry "SVK"]
[SourceTitle "playchess.com"]
[Source "ChessBase"]
[SourceQuality "1"]
[WhiteTeam "Slovan"]
[BlackTeam "Prakovce"]
[TimeControl "40/5400+30:1800+30"]

1. Nf3 {[%emt 0:00:00]} d5 {[%emt 0:02:51]} 2. d4 {[%emt 0:00:00]} Nf6 {[%emt 0:00:56]} 3. c4 {[%emt 0:00:00]} c6 {[%emt 0:00:08]} 4. Nc3 {[%emt 0:00:18]} a6 {[%emt 0:00:07]} 5. e3 {[%emt 0:02:34]} b5 {[%emt 0:00:11]} 6. b3 {[%emt 0:02:39]} Bg4 {[%emt 0:00:23]} 7. h3 {[%emt 0:02:05]} Bh5 {[%emt 0:02:07]} 8. g4 {[%emt 0:05:31]} Bg6 {[%emt 0:00:28]} 9. Ne5 {[%emt 0:00:12]} e6 {[%emt 0:04:14]} 10. Bd2 {[%emt 0:04:35]} Qc7 {[%emt 0:10:37]} 11. cxd5 {[%emt 0:08:12]} cxd5 {[%emt 0:00:17]} 12. Rc1 {[%emt 0:00:56]} Qb7 {[%emt 0:00:29]} 13. h4 {[%emt 0:07:05]} Bd6 {[%emt 0:34:10]} 14. h5 {[%emt 0:02:28]} Be4 {[%emt 0:01:58]} 15. f3 {[%emt 0:01:51]} Nbd7 {[%emt 0:07:51]} 16. Nxd7 {[%emt 0:18:48]} Bg3+ {[%emt 0:04:45]} 17. Ke2 {[%emt 0:00:03]} Qxd7 {[%emt 0:01:09]} 18. Be1 {[%emt 0:08:41]} Bxe1 {[%emt 0:08:36]} 19. Qxe1 {[%emt 0:06:29]} e5 {[%emt 0:00:49]} 20. Bh3 {[%emt 0:03:51]} exd4 {[%emt 0:04:42]} 21. g5 {[%emt 0:03:22]} Bf5 {[%emt 0:03:37]} 22. Bxf5 {[%emt 0:00:11]} Qxf5 {[%emt 0:00:07]} 23. gxf6 {[%emt 0:00:04]} Kd7 {[%emt 0:07:07]} 24. e4 {[%emt 0:07:55]} Rhe8 {[%emt 0:00:31]} 25. Kf2 {[%emt 0:00:10]} dxe4 {[%emt 0:02:58]} 26. Nxe4 {[%emt 0:00:08]} g5 {[%emt 0:00:51]} 27. Nc5+ {[%emt 0:05:21]} Kc6 {[%emt 0:00:47]} 28. Qd2 {[%emt 0:05:53]} Re3 {[%emt 0:00:38]} 29. Ne6+ {[%emt 0:00:40]} Kb7 {[%emt 0:00:30]} 30. Nxd4 {[%emt 0:00:09]} 1-0